Cogmind - Beta 12 @@@ ROGUE MODE // 2023.11.17 @ 17:36:52 Player: monistgf Result: Destroyed by H-88 Terminator with Heavy Machine Gun Performance ------------- Evolutions (9) 4500 Regions Visited (19) 3800 Robots Destroyed (133) 665 Value Destroyed (3236) 3236 Prototype IDs (68) 1360 Alien Tech Used (1) 200 Bonus (8071) 8071 TOTAL SCORE: 21832 Bonus ------- High Alert Combat Kills 136 Follower Combat Kills 2075 Network Hubs Disabled 200 Met Data Miner 300 Built Enhanced Grunts 300 A7 Reached Mainframe 300 Met R17 at Cetus 500 Used Core Reset Matrix 3000 Met Sigix 2000 Friendly Fire -740 Cogmind --------- Core Integrity 0/1600 Matter 181/300 Energy 100/100 System Corruption 5% Temperature Cool (0) Movement Core (50) Location -1/Access Parts ------- > --- POWER (2) -------- (None) > --- PROPULSION (7) --- (None) > --- UTILITY (14) ----- Machine Analyzer Advanced Signal Interpreter Advanced Hacking Suite Advanced System Shield > --- WEAPON (2) ------- (None) > --- INVENTORY (5) ---- Light Particle Reactor Terrabomb Enhanced Force Lance Sigix Containment Pod Peak State ------------ > --- POWER ------------ Particle Reactor Micro Antimatter Reactor > --- PROPULSION ------- Improved Flight Unit Cooled Field Propulsion Drive Field Propulsion Array Q-thruster Cooled Impulse Thruster > --- UTILITY ---------- Advanced Heat Sink Machine Analyzer Long-range Sensor Array Advanced Signal Interpreter Improved Transmission Jammer Improved Hacking Suite Improved Hacking Suite Advanced Hacking Suite System Shield System Shield Advanced Recalibrator > --- WEAPON ----------- Ionic Axe Enhanced Force Lance > --- INVENTORY -------- Impulse Thruster Terrabomb Scatter Rocket Array Sigix Containment Pod [Rating: 134] Favorites ----------- Power Light Fission Core Engine Light Ion Engine Power Core Light Fission Core Reactor Micro Antimatter Reactor Propulsion Improved Cesium-ion Thruster Treads Light Treads Leg Aluminum Leg Wheel Compact Wheel Flight Unit Improved Cesium-ion Thruster Utility Hacking Suite Device Advanced Heat Sink Storage Large Storage Unit Processor Advanced Signal Interpreter Hackware Hacking Suite Protection Propulsion Shielding Weapon Autogun Energy Gun EM Pulse Gun Ballistic Gun Autogun Ballistic Cannon Assault Cannon Launcher Grenade Launcher Special Weapon Plasma Cutter Impact Weapon Hammer Slashing Weapon Ionic Axe Piercing Weapon Enhanced Force Lance Build | -11 -10 -9 -8 -7 -7 -7 -7 -6 -6 -6 -6 -6 -6 -5 -4 -3 -3 -2 -1 ------- Run | Jun Mat Mat Mat Fac Low Low Dat Pro Fac Ext Cet Arc Hub Fac Fac Res Qua Res Acc Slots Evolved 18 | . . 2 2 2 . . . . 2 . . . . 2 2 2 . 2 2 Power 1 | . . . . . . . . . 1 . . . . . . . . . . Propulsion 5 | . . . 1 2 . . . . 1 . . . . . . . . . 1 Utility 12 | . . 2 1 . . . . . . . . . . 2 2 2 . 2 1 Weapon . | . . . . . . . . . . . . . . . . . . . . Parts Attached 274 | . 13 23 27 15 2 3 . 4 10 33 . 7 3 16 52 22 22 14 8 Power 50 | . 2 2 1 3 1 . . . 2 13 . . . 2 7 6 3 6 2 Engine 19 | . 2 1 1 3 1 . . . 1 8 . . . . . 2 . . . Core 15 | . . 1 . . . . . . 1 5 . . . 2 6 . . . . Reactor 16 | . . . . . . . . . . . . . . . 1 4 3 6 2 Propulsion 68 | . 3 4 13 7 . . . . 2 10 . . . 2 18 6 1 1 1 Treads 2 | . . . 1 . . . . . . 1 . . . . . . . . . Leg 2 | . . . . . . . . . . 2 . . . . . . . . . Wheel 16 | . 3 4 9 . . . . . . . . . . . . . . . . Hover . | . . . . . . . . . . . . . . . . . . . . Flight 48 | . . . 3 7 . . . . 2 7 . . . 2 18 6 1 1 1 Utility 88 | . 2 6 6 3 . 1 . 1 4 5 . 5 2 8 16 6 15 5 3 Device 47 | . 1 . 2 1 . . . . 3 2 . 2 1 3 11 3 12 5 1 Storage 4 | . 1 . 2 . . . . . . . . . . . . . 1 . . Processor 7 | . . . . 1 . . . . . . . . . 1 2 1 1 . 1 Hackware 13 | . . 1 1 . . . . . . . . 3 . 2 3 2 . . 1 Protection 17 | . . 5 1 1 . 1 . 1 1 3 . . 1 2 . . 1 . . Artifact . | . . . . . . . . . . . . . . . . . . . . Weapon 68 | . 6 11 7 2 1 2 . 3 2 5 . 2 1 4 11 4 3 2 2 Energy Gun 2 | . 2 . . . . . . . . . . . . . . . . . . Energy Cannon . | . . . . . . . . . . . . . . . . . . . . Ballistic Gun 39 | . 2 9 5 . 1 1 . 2 2 4 . 2 1 2 5 2 1 . . Ballistic Cannon 2 | . . . 1 . . . . . . 1 . . . . . . . . . Launcher 8 | . 1 2 1 . . . . . . . . . . 1 1 1 . 1 . Special Weapon 1 | . . . . 1 . . . . . . . . . . . . . . . Impact Weapon 1 | . 1 . . . . . . . . . . . . . . . . . . Slashing Weapon 12 | . . . . 1 . 1 . 1 . . . . . 1 5 1 1 1 . Piercing Weapon 3 | . . . . . . . . . . . . . . . . . 1 . 2 Special Melee Weapon . | . . . . . . . . . . . . . . . . . . . . Unidentified Prototypes 10 | . . . . 2 . . . . . . . . . 3 . 4 1 . . Parts Lost 61 | . 1 8 13 1 . . . 2 . 1 . . . 3 11 8 2 5 6 Power 12 | . . 1 1 1 . . . . . 1 . . . . 4 3 . 1 . Propulsion 15 | . . 3 5 . . . . . . . . . . . 2 1 . 2 2 Utility 24 | . . 3 4 . . . . . . . . . . 2 4 3 2 2 4 Weapon 10 | . 1 1 3 . . . . 2 . . . . . 1 1 1 . . . Highest Loss Streak 6 | . 1 2 6 1 . . . 1 . 1 . . . 2 5 3 1 3 6 To Critical Strikes 1 | . . . . . . . . . . . . . . . . 1 . . . Average Slot Usage (%) 91 | . 98 90 85 90 100 100 100 98 97 99 100 100 100 91 96 90 86 75 41 Engine 4 | . 14 7 . 6 7 7 7 7 8 7 . . . . . 1 . . . Core 4 | . . 3 7 . . . . . 4 4 13 13 13 11 9 1 . . . Reactor 1 | . . . . . . . . . . . . . . . . 5 8 6 2 Leg 1 | . 13 . . . . . . . . . . . . . . . . . . Wheel 4 | . 14 21 22 . . . . . . . . . . . . . . . . Flight 24 | . . . 1 38 38 38 38 38 37 39 40 40 40 31 29 23 23 19 7 Device 9 | . 13 2 7 . 7 7 7 7 6 6 6 6 9 13 25 18 15 14 7 Storage 2 | . 14 11 8 . . . . . . . . . . . . . . . . Processor 2 | . . . . 5 . . . . . . . . . . 2 7 8 8 9 Hackware 12 | . . 11 12 15 15 15 15 15 13 13 13 13 13 11 10 21 22 16 11 Protection 8 | . . 11 5 13 15 15 15 15 13 13 13 13 9 11 5 . . 3 . Ballistic Gun 10 | . 15 20 14 7 14 14 15 10 13 12 13 13 13 8 7 4 . . . Naked Turns . | . . . . . . . . . . . . . . . . . . . . Heaviest Build 99 | 12 29 39 99 19 19 17 16 18 23 31 28 30 32 32 33 40 42 42 28 Greatest Support 48 | 20 26 32 48 28 23 18 18 18 23 35 35 35 35 36 41 41 42 42 35 Greatest Overweight (x) 3 | . 1 1 3 . . . . . . 1 . . . . . . . . 1 Average Overweight (x) . | . . . . . . . . . . . . . . . . . . . . Largest Inventory Capacity 25 | . 15 15 25 5 5 5 5 5 5 5 5 5 5 5 5 5 5 5 5 Average Capacity 7 | . 14 15 20 5 5 5 5 5 5 5 5 5 5 5 5 5 5 5 5 Most Carried 23 | . 15 15 23 5 5 5 5 5 5 5 5 5 5 5 5 5 5 5 5 Average Carried 7 | . 10 14 17 4 4 5 5 4 4 4 5 4 4 4 4 4 4 4 4 Final Capacity 15 | 8 15 15 5 5 5 5 5 5 5 5 5 5 5 5 5 5 5 5 5 Final Carried 15 | 6 15 15 4 4 5 5 5 5 5 5 5 5 5 5 5 5 5 5 5 Class Distribution -------------------- 30% | Hacker-Sprinter 14% | Mutant 14% | Commander-Sprinter 12% | Hacker-Ninja 9% | Scavenger-Sprinter 6% | Scavenger-Mutant 5% | Hacker-Scout 5% | Hacker-Mutant Dominant Class ---------------- Mutant | -10/Materials Mutant | -9/Materials Hacker-Mutant | -8/Materials Hacker-Sprinter | -7/Factory Hacker-Sprinter | -7/Lower Caves Hacker-Sprinter | -7/Lower Caves Hacker-Sprinter | -7/Data Miner Hacker-Sprinter | -6/Proximity Caves Hacker-Sprinter | -6/Factory Commander-Sprinter | -6/Extension Commander-Sprinter | -6/Cetus Scavenger-Sprinter | -6/Archives Scavenger-Sprinter | -6/Hub_04(d) Scavenger-Sprinter | -5/Factory Hacker-Sprinter | -4/Factory Hacker-Scout | -3/Research Hacker-Ninja | -3/Quarantine Hacker-Ninja | -2/Research Hacker-Ninja | -1/Access Resources | -11 -10 -9 -8 -7 -7 -7 -7 -6 -6 -6 -6 -6 -6 -5 -4 -3 -3 -2 -1 ----------- Run | Jun Mat Mat Mat Fac Low Low Dat Pro Fac Ext Cet Arc Hub Fac Fac Res Qua Res Acc Matter Collected 5215 | 200 256 433 484 155 70 83 . 141 180 812 138 675 . 138 629 292 325 204 . Remotely . | . . . . . . . . . . . . . . . . . . . . Salvage Created 4792 | . 432 616 456 155 51 . . 85 182 303 . 476 283 365 690 314 285 99 . Parts 294 | . 36 39 29 11 2 . . 4 11 20 . 30 13 21 49 18 8 3 . Haulers Intercepted 15 | . 2 2 1 2 . . . . 1 . . . 1 2 . 2 1 1 . Recyclers Shooed 3 | . . . . . . . . . . 1 . . . . 1 . 1 . . Parts Field Recycled . | . . . . . . . . . . . . . . . . . . . . Retrieved Matter . | . . . . . . . . . . . . . . . . . . . . Parts Self-Destructed 11 | . . . . . 1 . . 10 . . . . . . . . . . . Prevented 1 | . . . . . 1 . . . . . . . . . . . . . . Kills | -11 -10 -9 -8 -7 -7 -7 -7 -6 -6 -6 -6 -6 -6 -5 -4 -3 -3 -2 -1 ------- Run | Jun Mat Mat Mat Fac Low Low Dat Pro Fac Ext Cet Arc Hub Fac Fac Res Qua Res Acc Combat Hostiles Destroyed 73 | . 13 15 12 1 1 . . 3 3 6 . 1 . 5 11 2 . . . Melee 3 | . . . . 1 1 . . 1 . . . . . . . . . . . Guns 49 | . 10 8 7 . . . . 2 3 6 . 1 . 1 11 . . . . Cannons 1 | . . . 1 . . . . . . . . . . . . . . . . AOE 20 | . 3 7 4 . . . . . . . . . . 4 . 2 . . . Classes Destroyed 15 | . 5 3 2 1 . . . . 1 . . . . . 1 1 1 . . Worker 12 | . . 1 1 . . . . . . . . . 3 1 2 2 2 . . Builder 5 | . . . . . . . . . 1 1 . . . . 3 . . . . Tunneler 1 | . . . . . . . . . . . . . . . . 1 . . . Hauler 15 | . 2 2 1 2 . . . . 1 . . . 1 2 . 2 1 1 . Recycler 5 | . . 1 1 . . . . . . . . . 1 . 1 . 1 . . Mechanic 1 | . . . . . . . . . . . . . . . . . 1 . . Operator 14 | . 1 1 1 . . . . . . . . 9 1 . 1 . . . . Watcher 6 | . 2 . . . . . . . . . . . . 2 2 . . . . Swarmer 39 | . 9 4 4 . . . . 3 3 1 . . . 5 8 2 . . . Cutter 2 | . . . . . . . . . . . . . . . 2 . . . . Grunt 15 | . 4 7 4 . . . . . . . . . . . . . . . . Duelist 1 | . . . 1 . . . . . . . . . . . . . . . . Sentry 13 | . . 4 2 . . . . . . 5 . 1 . . 1 . . . . Hunter 2 | . . . 1 . 1 . . . . . . . . . . . . . . Programmer 1 | . . . . 1 . . . . . . . . . . . . . . . Enhanced Grunt 1 | . . . . . . . . . . . . 1 . . . . . . . Best Kill Streak 11 | . 4 7 5 2 1 . . 2 3 2 . 3 5 6 11 2 1 1 . Combat Bots Only 5 | . 3 4 4 1 1 . . 2 3 2 . 1 . 5 5 2 . . . Max Kills in Single Turn 6 | . 2 2 3 1 1 . . 1 1 2 . 1 6 4 3 2 1 1 . Gunslinging . | . . . . . . . . . . . . . . . . . . . . Exploded 4 | . 2 2 2 . . . . . . . . . . 4 . 2 . . . Melee 1 | . . . . 1 1 . . 1 . . . . . . . . . . . Uniques/NPCs Destroyed 1 | . . . . . . . . . . . 1 . . . . . . . . Revision 17 (-6/Cetus) Combat | -11 -10 -9 -8 -7 -7 -7 -7 -6 -6 -6 -6 -6 -6 -5 -4 -3 -3 -2 -1 -------- Run | Jun Mat Mat Mat Fac Low Low Dat Pro Fac Ext Cet Arc Hub Fac Fac Res Qua Res Acc Damage Taken 10078 | . 522 886 1290 294 85 86 . 317 218 583 76 44 105 745 1033 958 166 750 1920 Core 3312 | . 135 136 258 19 36 13 . 119 5 88 . . . 89 209 306 41 248 1610 Absorbed by Shields 181 | . . . . . . . . . . 109 24 . . . . 12 . . 36 Redirected to Shielding 254 | . . . 4 10 . . . . 17 15 . . . 51 56 . 13 88 . Regen/Repaired (Parts) 156 | . . . . . . . . . . . . . . . . . 85 71 . Core Remaining (%) 75 | 100 46 66 53 . . . . 73 . . . . 89 91 81 . 73 82 . Volleys Fired 409 | . 59 52 58 4 1 . . 12 10 62 12 80 3 19 35 2 . . . Largest 2 | . 2 2 2 2 1 . . 1 2 2 2 2 2 2 2 1 . . . Hottest 67 | . 60 46 67 43 23 . . 20 46 57 46 48 63 63 66 50 . . . Shots Fired 723 | . 97 95 112 5 1 . . 12 20 97 25 160 6 27 64 2 . . . Gun 659 | . 94 86 88 4 1 . . 12 20 72 25 160 6 26 64 1 . . . Cannon 46 | . . . 21 . . . . . . 25 . . . . . . . . . Launcher 17 | . 3 9 3 . . . . . . . . . . 1 . 1 . . . Special 1 | . . . . 1 . . . . . . . . . . . . . . . Kinetic 667 | . 56 86 109 4 1 . . 12 20 97 25 160 6 26 64 1 . . . Thermal 19 | . 18 . . 1 . . . . . . . . . . . . . . . Explosive 17 | . 3 9 3 . . . . . . . . . . 1 . 1 . . . Electromagnetic 20 | . 20 . . . . . . . . . . . . . . . . . . Robot Hit Streak 23 | . 10 14 23 2 3 . . 7 10 17 5 8 6 10 5 . . . . Robot Miss Streak 4 | . 4 2 3 1 . . . 1 1 3 3 4 3 3 3 1 . . . Penetration Max 1 | . . . . . . . . . . . . . . 1 1 . . . . Secondary Targets 5 | . 1 1 . . . . . . . . . . . 1 2 . . . . Max Gunslinging Chain 1 | . 1 1 . . . . . . . . . . . 1 1 . . . . Shots Hit Robots 489 | . 58 71 81 9 3 . . 11 18 50 15 98 1 22 40 5 6 1 . Core Hits 251 | . 26 38 29 4 1 . . 6 10 19 7 43 11 14 27 13 3 . . Critical Kills 4 | . . 1 . . . . . . . . . . . 1 2 . . . . Critical Parts Destroyed 5 | . 1 . 1 . . . . . . . . . . 2 1 . . . . Critical Strikes 12 | . 1 1 2 . . . . . . . . . . 3 4 . . 1 . Destroy 9 | . 1 1 1 . . . . . . . . . . 3 3 . . . . Blast 1 | . . . 1 . . . . . . . . . . . . . . . . Sever 1 | . . . . . . . . . . . . . . . 1 . . . . Impale 1 | . . . . . . . . . . . . . . . . . . 1 . Melee Attacks 93 | . 1 . . 10 3 2 . 3 . . . . . 1 23 13 13 15 9 Impact 1 | . 1 . . . . . . . . . . . . . . . . . . Slashing 66 | . . . . 10 3 2 . 3 . . . . . 1 23 13 11 . . Piercing 26 | . . . . . . . . . . . . . . . . . 2 15 9 Sneak Attacks 15 | . . . . 1 . . . . . . . . . . 3 5 5 1 . Combat Hostiles . | . . . . . . . . . . . . . . . . . . . . Follow-up Attacks . | . . . . . . . . . . . . . . . . . . . . Damage Inflicted 11705 | . 945 1170 1698 287 86 . . 200 275 847 305 1551 653 783 1405 763 570 167 . Guns 6854 | . 732 597 872 30 12 . . 111 275 847 305 1551 16 512 994 . . . . Cannons 442 | . . . 442 . . . . . . . . . . . . . . . . Explosions 2385 | . 213 573 384 . . . . . . . . . 637 271 . 307 . . . Melee 2014 | . . . . 247 74 . . 89 . . . . . . 411 456 570 167 . Ramming . | . . . . . . . . . . . . . . . . . . . . Kinetic 7042 | . 478 597 1314 30 12 . . 111 275 847 305 1551 16 512 994 . . . . Thermal 135 | . 125 . . 10 . . . . . . . . . . . . . . . Explosive 1748 | . 213 573 384 . . . . . . . . . . 271 . 307 . . . Electromagnetic 766 | . 129 . . . . . . . . . . . 637 . . . . . . Impact . | . . . . . . . . . . . . . . . . . . . . Slashing 1721 | . . . . 247 74 . . 89 . . . . . . 411 456 444 . . Piercing 293 | . . . . . . . . . . . . . . . . . 126 167 . Highest Corruption 5 | . . . . 2 2 2 2 2 2 2 2 2 1 . 1 5 5 4 5 Average Corruption 2 | . . . . 1 2 2 2 2 2 2 2 1 1 . 1 4 5 1 3 Corruption Purged 2 | . . . . . . . . . . . . 2 . . . . . . . Corruption Blocked . | . . . . . . . . . . . . . . . . . . . . Effects 49 | . . . . . 1 . 1 2 . 20 4 . . . 3 6 4 2 6 Message Errors 8 | . . . . . 1 . . 1 . . 1 . . . 1 . 1 1 2 Matter Fused 15 | . . . . . . . . 1 . 9 . . . . 1 2 1 . 1 Heat Flow Errors 5 | . . . . . . . . . . 2 . . . . 1 . 1 . 1 Energy Discharges 5 | . . . . . . . . . . 3 1 . . . . 1 . . . Parts Fused 3 | . . . . . . . . . . 1 . . . . . 1 . . 1 Data Loss (minor) 5 | . . . . . . . 1 . . 2 . . . . . 1 1 . . Data Loss (major) 5 | . . . . . . . . . . 1 1 . . . . 1 . 1 1 Misfires 1 | . . . . . . . . . . . 1 . . . . . . . . Weapon Failures 2 | . . . . . . . . . . 2 . . . . . . . . . Overload Shots . | . . . . . . . . . . . . . . . . . . . . Overflow Damage 515 | . . . 44 . . . . . . . . . . 15 . 49 143 264 . Projectiles 16 | . . . 16 . . . . . . . . . . . . . . . . Explosions 53 | . . . 28 . . . . . . . . . . 15 . 10 . . . Melee 446 | . . . . . . . . . . . . . . . . 39 143 264 . Knockbacks 8 | . . . 8 . . . . . . . . . . . . . . . . Impact . | . . . . . . . . . . . . . . . . . . . . Kinetic 6 | . . . 6 . . . . . . . . . . . . . . . . Secondary 2 | . . . 2 . . . . . . . . . . . . . . . . Self-Inflicted Damage 165 | . 12 9 16 . . . . . . . . . 106 22 . . . . . Shots 5 | . 1 1 1 . . . . . . . . . 1 1 . . . . . Rammed . | . . . . . . . . . . . . . . . . . . . . Targets Rammed . | . . . . . . . . . . . . . . . . . . . . Kicked . | . . . . . . . . . . . . . . . . . . . . Crushed . | . . . . . . . . . . . . . . . . . . . . Highest Temperature 286 | . 24 33 144 20 5 5 . 8 286 157 29 122 6 21 223 . 154 . 159 Average Temperature 48 | . 12 7 56 5 5 3 . 4 95 28 6 27 3 10 125 . 114 . 81 Received Heat Transfer 1815 | . 96 342 558 63 . 27 . 15 . 174 13 9 . 180 66 53 21 36 162 Siege Activations . | . . . . . . . . . . . . . . . . . . . . Robots Corrupted . | . . . . . . . . . . . . . . . . . . . . Combat Hostiles . | . . . . . . . . . . . . . . . . . . . . Parts Fried 4 | . . . . . . . . . . . . . 4 . . . . . . Impact Corruptions . | . . . . . . . . . . . . . . . . . . . . Robots Melted . | . . . . . . . . . . . . . . . . . . . . Combat Hostiles . | . . . . . . . . . . . . . . . . . . . . Parts Melted . | . . . . . . . . . . . . . . . . . . . . Heat Transferred 312 | . 275 . . 37 . . . . . . . . . . . . . . . Parts Sabotaged . | . . . . . . . . . . . . . . . . . . . . Parts Stolen . | . . . . . . . . . . . . . . . . . . . . Parts Stripped . | . . . . . . . . . . . . . . . . . . . . Power Chain Reactions . | . . . . . . . . . . . . . . . . . . . . Missiles Intercepted . | . . . . . . . . . . . . . . . . . . . . Alert | -11 -10 -9 -8 -7 -7 -7 -7 -6 -6 -6 -6 -6 -6 -5 -4 -3 -3 -2 -1 ------- Run | Jun Mat Mat Mat Fac Low Low Dat Pro Fac Ext Cet Arc Hub Fac Fac Res Qua Res Acc Peak Influence 929 | . 210 400 442 444 . . . . 415 341 554 449 417 929 572 559 352 519 564 Initial 393 | . . 51 169 128 . . . . 157 115 7 221 156 203 393 264 204 81 309 Average 274 | . 94 253 304 314 . . . . 209 153 256 374 294 592 431 349 235 204 355 Maximum Alert Level 3 | . 1 2 2 2 . . . . 2 1 2 2 2 3 2 2 1 2 2 Low Security (%) 35 | . 89 32 5 16 . . . . 63 72 65 . 50 . . . 21 66 . Level 1 43 | . 10 57 68 55 . . . . 34 27 15 66 2 31 30 75 78 20 81 Level 2 18 | . . 10 25 27 . . . . 1 . 18 33 47 20 69 23 . 13 18 Level 3 2 | . . . . . . . . . . . . . . 48 . . . . . Level 4 . | . . . . . . . . . . . . . . . . . . . . Level 5 . | . . . . . . . . . . . . . . . . . . . . High Security . | . . . . . . . . . . . . . . . . . . . . Max Security . | . . . . . . . . . . . . . . . . . . . . Squads Dispatched 35 | . 3 3 1 2 . . . . 3 1 . . 1 6 4 3 2 4 2 Investigation 15 | . 2 2 . 1 . . . . 1 . . . . 2 2 2 1 . 2 Extermination 5 | . . . . . . . . . . . . . . 1 . 1 1 2 . Reinforcement 13 | . 1 1 1 1 . . . . 2 1 . . 1 2 1 . . 2 . Assault 2 | . . . . . . . . . . . . . . 1 1 . . . . Garrison . | . . . . . . . . . . . . . . . . . . . . Intercept . | . . . . . . . . . . . . . . . . . . . . Searches Triggered . | . . . . . . . . . . . . . . . . . . . . Data Miner Redirects 8 | . . . . . . . . . 1 . . . . 3 1 1 1 . 1 Construction Impeded 1 | . . . . . . . . . . 1 . . . . . . . . . Haulers Reinforced 1 | . . . . . . . . . 1 . . . . . . . . . . Active Scanning Responses . | . . . . . . . . . . . . . . . . . . . . Cargo Convoy Interrupts . | . . . . . . . . . . . . . . . . . . . . Stealth | -11 -10 -9 -8 -7 -7 -7 -7 -6 -6 -6 -6 -6 -6 -5 -4 -3 -3 -2 -1 --------- Run | Jun Mat Mat Mat Fac Low Low Dat Pro Fac Ext Cet Arc Hub Fac Fac Res Qua Res Acc Distress Signals 28 | . 2 2 4 2 . . . . . 3 2 . . 1 2 3 . 2 5 Communications Jammed 39 | . . . . . . . . . . . . . . . . 9 2 14 14 Distress Signals 30 | . . . . . . . . . . . . . . . . . 2 14 14 Times Spotted 398 | . 19 26 27 34 1 7 . 11 13 24 15 34 3 31 34 46 16 29 28 Peak Tracking Total 17 | . 4 6 8 11 1 5 . 7 5 3 5 2 3 13 9 17 9 15 13 Tactical Retreats 62 | . 2 4 1 8 . 4 . 2 3 . . . 2 5 8 10 3 6 4 Traps | -11 -10 -9 -8 -7 -7 -7 -7 -6 -6 -6 -6 -6 -6 -5 -4 -3 -3 -2 -1 ------- Run | Jun Mat Mat Mat Fac Low Low Dat Pro Fac Ext Cet Arc Hub Fac Fac Res Qua Res Acc Traps Triggered 11 | . . 1 . 2 . . . . 2 . . . . 1 1 1 1 . 2 Indirectly . | . . . . . . . . . . . . . . . . . . . . Trap Hack Attempts . | . . . . . . . . . . . . . . . . . . . . Triggered . | . . . . . . . . . . . . . . . . . . . . Disarmed . | . . . . . . . . . . . . . . . . . . . . Reprogrammed . | . . . . . . . . . . . . . . . . . . . . Reused . | . . . . . . . . . . . . . . . . . . . . Traps Extracted . | . . . . . . . . . . . . . . . . . . . . Installed . | . . . . . . . . . . . . . . . . . . . . Triggered 2 | . . . . . 1 1 . . . . . . . . . . . . . Machines | -11 -10 -9 -8 -7 -7 -7 -7 -6 -6 -6 -6 -6 -6 -5 -4 -3 -3 -2 -1 ---------- Run | Jun Mat Mat Mat Fac Low Low Dat Pro Fac Ext Cet Arc Hub Fac Fac Res Qua Res Acc Machines Disabled 16 | . 1 . . . . . . . . . . 4 3 1 5 . 2 . . Max in Single Turn 3 | . 1 . . . . . . . . . . 1 3 . 1 . 1 . . Garrison Access 5 | . . . . 1 . . . . . . . . . 1 2 . . 1 . Network Hub 1 | . . . . . . . . . . . . . 1 . . . . . . Machines Repaired . | . . . . . . . . . . . . . . . . . . . . Machines Sabotaged . | . . . . . . . . . . . . . . . . . . . . Overloaded Fab Kills . | . . . . . . . . . . . . . . . . . . . . Hacking | -11 -10 -9 -8 -7 -7 -7 -7 -6 -6 -6 -6 -6 -6 -5 -4 -3 -3 -2 -1 --------- Run | Jun Mat Mat Mat Fac Low Low Dat Pro Fac Ext Cet Arc Hub Fac Fac Res Qua Res Acc Machines Accessed 92 | . 6 2 2 13 1 . 4 . 8 7 1 . 2 9 10 5 12 7 3 Terminals 63 | . 6 2 2 9 . . . . 4 7 1 . 2 6 5 3 11 3 2 Fabricators 13 | . . . . 1 . . . . 4 . . . . 2 2 1 . 2 1 Repair Stations 3 | . . . . . . . . . . . . . . . 1 . 1 1 . Recycling Units 1 | . . . . 1 . . . . . . . . . . . . . . . Scanalyzers 1 | . . . . . . . . . . . . . . . . 1 . . . Garrison Access 6 | . . . . 2 . . . . . . . . . 1 2 . . 1 . Total Hacks 356 | . 17 7 9 35 1 . 31 . 25 17 3 . 8 36 34 23 54 39 17 Successful 191 | . 7 2 6 17 1 . 31 . 14 10 1 . 5 18 12 14 31 16 6 Failed 164 | . 9 5 3 18 . . . . 11 7 2 . 3 18 22 9 23 23 11 Catastrophic 23 | . 1 1 1 5 . . . . . . . . . 1 2 . 6 4 2 Database Lockouts 1 | . 1 . . . . . . . . . . . . . . . . . . Manual 148 | . 10 6 5 14 . . . . 13 8 1 . 5 13 14 12 19 25 3 Terminals 247 | . 17 7 9 25 . . . . 11 17 3 . 8 28 17 18 48 28 11 Fabricators 49 | . . . . 2 . . . . 14 . . . . 7 11 4 . 5 6 Repair Stations 12 | . . . . . . . . . . . . . . . 2 . 6 4 . Recycling Units 3 | . . . . 3 . . . . . . . . . . . . . . . Scanalyzers 1 | . . . . . . . . . . . . . . . . 1 . . . Garrison Access 12 | . . . . 5 . . . . . . . . . 1 4 . . 2 . Terminal Hacks 136 | . 7 2 6 11 1 . 31 . 5 9 1 . 4 10 6 9 25 7 2 Record 19 | . . . . . . . 11 . . 2 . . . . . 1 5 . . Part Schematic 14 | . . . 1 . . . 11 . . . . . . . . . 1 1 . Robot Schematic 6 | . . . . . . . 6 . . . . . . . . . . . . Robot Analysis 1 | . 1 . . . . . . . . . . . . . . . . . . Prototype ID Bank 25 | . 3 1 1 2 . . 3 . 1 2 . . 1 2 1 1 5 1 1 Open Door 4 | . . . . . 1 . . . 1 . 1 . . . . . 1 . . Level Access Points 4 | . . . . . . . . . . . . . . 1 . . 1 1 1 Branch Access Points 8 | . . 1 1 . . . . . 1 . . . 1 1 . 1 1 1 . Recycling Unit Index 1 | . . . . 1 . . . . . . . . . . . . . . . Alert Level 18 | . . . 1 2 . . . . 1 2 . . 1 2 3 3 2 1 . Unreport Threat 12 | . 1 . . 1 . . . . 1 2 . . . 2 2 2 1 . . Locate Traps 9 | . . . . 3 . . . . . 1 . . . 1 . . 2 2 . Security Status 1 | . 1 . . . . . . . . . . . . . . . . . . Transport Status 1 | . . . 1 . . . . . . . . . . . . . . . . Recall Investigation 1 | . . . . . . . . . . . . . . . . 1 . . . Recall Extermination 2 | . . . . . . . . . . . . . . 1 . . 1 . . Hauler Manifests 4 | . 1 . 1 1 . . . . . . . . . . . . 1 . . Registered Components 2 | . . . . 1 . . . . . . . . . . . . 1 . . Registered Prototypes 1 | . . . . . . . . . . . . . . . . . 1 . . Zone Layout 3 | . . . . . . . . . . . . . 1 . . . 2 . . Fabricator Hacks 21 | . . . . . . . . . 6 . . . . 5 3 3 . 2 2 Network Status 6 | . . . . . . . . . 1 . . . . 1 1 1 . 1 1 Load Schematic 7 | . . . . . . . . . 2 . . . . 2 1 1 . . 1 Build 8 | . . . . . . . . . 3 . . . . 2 1 1 . 1 . Repair Station Hacks 8 | . . . . . . . . . . . . . . . . . 4 4 . Scan Component 4 | . . . . . . . . . . . . . . . . . 2 2 . Repair 4 | . . . . . . . . . . . . . . . . . 2 2 . Recycling Unit Hacks 3 | . . . . 3 . . . . . . . . . . . . . . . Process 1 | . . . . 1 . . . . . . . . . . . . . . . Report Inventory 1 | . . . . 1 . . . . . . . . . . . . . . . Retrieve Matter 1 | . . . . 1 . . . . . . . . . . . . . . . Scanalyzer 1 | . . . . . . . . . . . . . . . . 1 . . . Insert Component 1 | . . . . . . . . . . . . . . . . 1 . . . Garrison Access Hacks 5 | . . . . 1 . . . . . . . . . 1 2 . . 1 . Seal Access 5 | . . . . 1 . . . . . . . . . 1 2 . . 1 . Unauthorized Hacks 17 | . . . . 2 . . . . 3 1 . . 1 2 1 1 2 2 2 Terminals 12 | . . . . 2 . . . . 2 1 . . 1 2 . . 2 1 1 Assimilate 7 | . . . . 2 . . . . . 1 . . 1 2 . . 1 . . Botnet 4 | . . . . . . . . . 1 . . . . . . . 1 1 1 Operators 1 | . . . . . . . . . 1 . . . . . . . . . . Fabricators 5 | . . . . . . . . . 1 . . . . . 1 1 . 1 1 Prioritize 5 | . . . . . . . . . 1 . . . . . 1 1 . 1 1 Repair Stations . | . . . . . . . . . . . . . . . . . . . . Recycling Units . | . . . . . . . . . . . . . . . . . . . . Scanalyzers . | . . . . . . . . . . . . . . . . . . . . Garrison Access . | . . . . . . . . . . . . . . . . . . . . Data Cores Recovered 1 | . . . . . . . . . . . . . . . 1 . . . . Used 1 | . . . . . . . . . . . . . . . 1 . . . . Hacking Detections 74 | . 6 2 1 10 . . . . 7 7 1 . 2 8 8 4 10 5 3 Full Trace Events 14 | . 2 1 . 1 . . . . 1 . . . . 2 2 2 1 . 2 Feedback Events 2 | . . . . . . . . . . . . . . . 1 . . . 1 Corruption 2 | . . . . . . . . . . . . . . . 1 . . . 1 Feedback Blocked . | . . . . . . . . . . . . . . . . . . . . Robot Schematics Acquired 6 | . . . . . . . 6 . . . . . . . . . . . . Robots Built 7 | . . . . . . . . . 7 . . . . . . . . . . Authchips . | . . . . . . . . . . . . . . . . . . . . Time 201 | . . . . . . . . . 201 . . . . . . . . . . Total Robot Build Rating 28 | . . . . . . . . . 28 . . . . . . . . . . Part Schematics Acquired 14 | . . . 1 . . . 11 . . . . . . . . . 1 1 . Parts Built 7 | . . . . . . . . . 1 . . . . 2 1 1 . 2 . Authchips . | . . . . . . . . . . . . . . . . . . . . Time 299 | . . . . . . . . . 49 . . . . 102 26 53 . 69 . Total Part Build Rating 40 | . . . . . . . . . 2 . . . . 8 6 6 . 18 . Parts Repaired 4 | . . . . . . . . . . . . . . . . . 2 2 . Time 80 | . . . . . . . . . . . . . . . . . 38 42 . Parts Recycled . | . . . . . . . . . . . . . . . . . . . . Recycled Matter 59 | . . . . 59 . . . . . . . . . . . . . . . Retrieved Matter 59 | . . . . 59 . . . . . . . . . . . . . . . Retrieved Components . | . . . . . . . . . . . . . . . . . . . . Parts Scanalyzed . | . . . . . . . . . . . . . . . . . . . . Part Schematics Acquired . | . . . . . . . . . . . . . . . . . . . . Parts Damaged . | . . . . . . . . . . . . . . . . . . . . Bothacking | -11 -10 -9 -8 -7 -7 -7 -7 -6 -6 -6 -6 -6 -6 -5 -4 -3 -3 -2 -1 ------------ Run | Jun Mat Mat Mat Fac Low Low Dat Pro Fac Ext Cet Arc Hub Fac Fac Res Qua Res Acc Used RIF Installer . | . . . . . . . . . . . . . . . . . . . . Robots Hacked . | . . . . . . . . . . . . . . . . . . . . Non-combat . | . . . . . . . . . . . . . . . . . . . . Combat . | . . . . . . . . . . . . . . . . . . . . Robot Hacks Applied . | . . . . . . . . . . . . . . . . . . . . Relay Couplers Released . | . . . . . . . . . . . . . . . . . . . . Fabnet Peak Effective % . | . . . . . . . . . . . . . . . . . . . . Robots Rewired 18 | . . . . . . . . . . 18 . . . . . . . . . Allies Hacked 1 | . . . . 1 . . . . . . . . . . . . . . . Hacks Repelled . | . . . . . . . . . . . . . . . . . . . . Allies | -11 -10 -9 -8 -7 -7 -7 -7 -6 -6 -6 -6 -6 -6 -5 -4 -3 -3 -2 -1 -------- Run | Jun Mat Mat Mat Fac Low Low Dat Pro Fac Ext Cet Arc Hub Fac Fac Res Qua Res Acc Total Allies 70 | . . . . 2 . . . 1 7 30 5 . 1 2 . . 1 . 21 Largest Group 22 | . . . . 1 1 . . 1 4 20 22 10 5 5 . . 1 . 15 Highest-Rated Group 1099 | . . . . 26 10 . . 96 75 710 1099 662 318 334 . . 45 . 213 Highest-Rated Ally 159 | . . . . 26 10 . . 96 75 159 159 159 96 96 . . 45 . 15 Total Orders 6 | . . . . . . . . . . 4 2 . . . . . . . . STAY 3 | . . . . . . . . . . 2 1 . . . . . . . . FOLLOW 3 | . . . . . . . . . . 2 1 . . . . . . . . Ally Attacks 481 | . . . . . . . . 34 26 145 121 33 . 67 . . . . 55 Total Damage 12915 | . . . . . . . . 1087 459 3163 3292 1123 . 2706 . . . . 1085 Kills 76 | . . . . . . . . 6 2 21 24 3 . 15 . . . . 5 Allies Corrupted 1 | . . . . . . . . . . . . . . . . . 1 . . Allies Melted 1 | . . . . . . . . . . 1 . . . . . . . . . Intel | -11 -10 -9 -8 -7 -7 -7 -7 -6 -6 -6 -6 -6 -6 -5 -4 -3 -3 -2 -1 ------- Run | Jun Mat Mat Mat Fac Low Low Dat Pro Fac Ext Cet Arc Hub Fac Fac Res Qua Res Acc Robot Analysis Total 1 | . 1 . . . . . . . . . . . . . . . . . . Derelict Logs Recovered 4 | . . . . . 1 1 . 2 . . . . . . . . . . . Drone Launches . | . . . . . . . . . . . . . . . . . . . . Drone Recoveries . | . . . . . . . . . . . . . . . . . . . . Exploration | -11 -10 -9 -8 -7 -7 -7 -7 -6 -6 -6 -6 -6 -6 -5 -4 -3 -3 -2 -1 ------------- Run | Jun Mat Mat Mat Fac Low Low Dat Pro Fac Ext Cet Arc Hub Fac Fac Res Qua Res Acc Turns Passed 8781 | . 724 701 708 480 177 182 24 288 307 1427 377 352 108 387 776 475 509 357 422 Spaces Moved 12563 | 1 419 385 476 1232 393 592 82 635 610 1247 363 312 194 821 1263 1146 948 603 841 Core 310 | . . . . . . . . . . . . . . . . . . . 310 Treads 4 | . . . . . . . . . . 4 . . . . . . . . . Legs 138 | 1 136 . . . . . . . . 1 . . . . . . . . . Wheels 1038 | . 283 385 370 . . . . . . . . . . . . . . . . Hover . | . . . . . . . . . . . . . . . . . . . . Flight 11073 | . . . 106 1232 393 592 82 635 610 1242 363 312 194 821 1263 1146 948 603 531 Fastest Speed 20 | 120 95 90 29 23 26 29 29 29 26 20 22 22 22 22 22 27 27 27 32 Average Speed 35 | 120 119 103 95 28 28 29 29 29 26 26 22 22 22 24 24 27 27 27 39 Slowest Speed 240 | 120 190 115 145 29 29 29 29 29 26 240 22 22 22 27 28 31 27 34 114 Overloaded Moves . | . . . . . . . . . . . . . . . . . . . . Propulsion Burnouts . | . . . . . . . . . . . . . . . . . . . . Robots Hopped 109 | . . . . 21 1 5 . 2 4 18 . 1 . 9 7 14 13 12 2 Cave-ins Triggered . | . . . . . . . . . . . . . . . . . . . . Exploration Rate (%) 48 | 1 84 40 44 37 53 79 69 69 18 84 66 96 19 30 38 29 66 27 29 Regions Visited 19 Branch Regions 9 Pre-discovered Areas 3 | . . . . . . 1 1 1 . . . . . . . . . . . Known Exits Taken 7 | . . . . . 1 . . . 1 . . . . 1 1 1 1 1 . Unknown Exits Taken 12 | 1 1 1 1 1 . 1 1 1 . 1 1 1 1 . . . . . . Scrap Searched 6 | . . . . . 1 4 . 1 . . . . . . . . . . . Spaces Dug 73 | . 1 . . . . 2 . . . 25 . . . 1 12 6 4 13 9 Terrain Destroyed 404 | . 19 42 35 . . 2 . . . 33 . . 170 29 18 30 4 13 9 Melee 48 | . 1 . . . . 2 . . . . . . . 1 12 6 4 13 9 Projectile 42 | . . . . . . . . . . 33 . . 1 2 6 . . . . AOE 314 | . 18 42 35 . . . . . . . . . 169 26 . 24 . . . Terrain Rammed . | . . . . . . . . . . . . . . . . . . . . Walls Destroyed . | . . . . . . . . . . . . . . . . . . . . Machines Disabled . | . . . . . . . . . . . . . . . . . . . . Actions | -11 -10 -9 -8 -7 -7 -7 -7 -6 -6 -6 -6 -6 -6 -5 -4 -3 -3 -2 -1 --------- Run | Jun Mat Mat Mat Fac Low Low Dat Pro Fac Ext Cet Arc Hub Fac Fac Res Qua Res Acc Total 15981 | . 542 612 630 1316 449 594 81 720 739 2246 641 462 254 969 1632 1267 1167 751 909 Wait 2369 | . 27 134 44 49 49 . . 66 100 794 265 60 51 104 226 72 174 116 38 Move 12333 | . 418 384 475 1191 390 582 81 630 601 1211 362 309 193 802 1248 1118 922 579 837 Hop 102 | . . . . 19 1 4 . 2 4 17 . 1 . 9 7 13 12 11 2 Pick Up 83 | . 13 9 10 3 1 1 . 2 6 8 1 1 1 5 9 7 3 2 1 Fast Attach 111 | . 3 3 7 8 1 . . 1 1 10 . 2 . 9 20 11 19 10 6 Attach 52 | . . 8 11 4 . . . 2 2 2 . 1 1 3 7 4 3 2 2 Detach 25 | . 1 1 2 3 1 . . . . 1 . . . 2 3 3 2 2 4 Swap 112 | . 10 12 9 3 1 3 . 1 7 21 . 4 2 4 25 7 1 2 . Drop 179 | . 10 9 14 6 1 2 . 1 8 35 1 4 3 11 29 9 18 12 6 Fire 409 | . 59 52 58 4 1 . . 12 10 62 12 80 3 19 35 2 . . . Melee 93 | . 1 . . 10 3 2 . 3 . . . . . 1 23 13 13 15 9 Ram . | . . . . . . . . . . . . . . . . . . . . Kick . | . . . . . . . . . . . . . . . . . . . . Crush . | . . . . . . . . . . . . . . . . . . . . Escape Stasis 27 | . . . . 15 . . . . . . . . . . . 8 . . 4 Rewire 86 | . . . . 1 . . . . . 85 . . . . . . . . . Trap . | . . . . . . . . . . . . . . . . . . . . Miscellaneous . | . . . . . . . . . . . . . . . . . . . . Route ------- -11/Junkyard -10/Materials (discovered 2 exits: *Mat / [*Min]) -9/Materials (discovered 3 exits: *Mat / *Min x2) -8/Materials (discovered 3 exits: *Fac / Sto x2) -7/Factory (discovered 2 exits: *Fac / *Low) -7/Lower Caves -7/Lower Caves (discovered 2 exits: *Fac / *Dat) -7/Data Miner -6/Proximity Caves -6/Factory (discovered 5 exits: *Fac / Low x2 / *Ext x2) -6/Extension (discovered 2 exits: *Fac / *Cet) -6/Cetus (discovered 2 exits: *Fac / [*Arc]) -6/Archives (discovered 3 exits: *Fac / *Hub x2) -6/Hub_04(d) -5/Factory (discovered 6 exits: *Fac x4 / Upp x2) -4/Factory -3/Research (discovered 3 exits: Arm / *Qua x2) -3/Quarantine -2/Research (discovered 5 exits: *Acc x3 / Tes x2) -1/Access (discovered 1 exit: Sur) History --------- Turn | Location | Event 1 | -11/Junkyard | Discovered new exit (range 0) 1 | -11/Junkyard | Entered Materials 316 | -10/Materials | Build established: Mutant 428 | -10/Materials | Central database locked down 480 | -10/Materials | Discovered new exit (range 8) 590 | -10/Materials | Core integrity fell below 50% 619 | -10/Materials | Discovered new exit (range 11) 725 | -10/Materials | Entered another Materials area 725 | -9/Materials | Evolved 2 slots: Utility x2 1066 | -9/Materials | Discovered new exit (range 3) 1079 | -9/Materials | Build established: Scavenger-Mutant 1217 | -9/Materials | Identified exit to Mines 1425 | -9/Materials | Build established: Mutant 1426 | -9/Materials | Entered another Materials area 1426 | -8/Materials | Evolved 2 slots: Propulsion x1, Utility x1 1753 | -8/Materials | Discovered new exit (range 3) 1860 | -8/Materials | Identified exit to Storage 2035 | -8/Materials | Lost 3 parts (1p2n) 2132 | -8/Materials | Lost 6 parts (2n2u2w) 2134 | -8/Materials | Entered Factory 2134 | -7/Factory | Evolved 2 slots: Propulsion x2 2378 | -7/Factory | Discovered new exit (range 14) 2400 | -7/Factory | Discovered new exit (range 8) 2404 | -7/Factory | Build established: Hacker-Sprinter 2614 | -7/Factory | Entered Lower Caves 2614 | -7/Lower Caves | Accompanied by 1 ally 2727 | -7/Lower Caves | Identified exit to Lower Caves 2791 | -7/Lower Caves | Entered another Lower Caves area 2791 | -7/Lower Caves | Accompanied by 1 ally 2794 | -7/Lower Caves | Discovered new exit (range 4) 2866 | -7/Lower Caves | Attracted the attention of an 0b10 checkpoint 2895 | -7/Lower Caves | Discovered new exit (range 6) 2973 | -7/Lower Caves | Entered Data Miner 2973 | -7/Data Miner | Discovered new exit (range 6) 2980 | -7/Data Miner | Met Data Miner 2986 | -7/Data Miner | Learned location of Section 7 (-3) 2986 | -7/Data Miner | Acquired the access code to Warlord's prototype stash 2990 | -7/Data Miner | Received God Mode back door access code from Data Miner 2997 | -7/Data Miner | Entered Proximity Caves 3021 | -6/Proximity Caves | Attracted the attention of an 0b10 checkpoint 3022 | -6/Proximity Caves | Escorted by Enhanced Grunt 3052 | -6/Proximity Caves | Learned Factory terminal intel 3065 | -6/Proximity Caves | Spotted B-75 Beast 3186 | -6/Proximity Caves | Discovered new exit (range 12) 3285 | -6/Proximity Caves | Entered Factory 3285 | -6/Factory | Accompanied by 1 ally 3285 | -6/Factory | Evolved 2 slots: Power x1, Propulsion x1 3286 | -6/Factory | Loaded intel: 28 terminal locations 3377 | -6/Factory | Incoming investigation squad redirected 3406 | -6/Factory | Fabricated Imp. Flight Unit (x1) 3428 | -6/Factory | Identified exit to Lower Caves 3428 | -6/Factory | Identified exit to Extension 3437 | -6/Factory | Discovered new exit (range 7) 3553 | -6/Factory | Fabricated S-27 Virus? 3582 | -6/Factory | Fabricated B-48 Gladiator? 3592 | -6/Factory | Entered Extension 3616 | -6/Extension | Rescued a captive Derelict 3619 | -6/Extension | Rescued a captive Derelict 3622 | -6/Extension | Rescued a captive Derelict 3786 | -6/Extension | Rescued a captive Derelict 3789 | -6/Extension | Rescued A7 4170 | -6/Extension | Warlord forces began an assault 4229 | -6/Extension | Build established: Commander-Sprinter 4264 | -6/Extension | Spotted B-75 Beast 4278 | -6/Extension | Spotted B-75 Beast 4292 | -6/Extension | Allies destroyed B-75 Beast 4384 | -6/Extension | Rescued a captive Derelict 4389 | -6/Extension | Rescued a captive Derelict 4391 | -6/Extension | Rescued a captive Derelict 4728 | -6/Extension | Rescued a captive Derelict 4729 | -6/Extension | Rescued a captive Derelict 4733 | -6/Extension | Rescued a captive Derelict 4799 | -6/Extension | Discovered new exit (range 10) 4800 | -6/Extension | Discovered new exit (range 6) 5019 | -6/Extension | Entered Cetus 5019 | -6/Cetus | Accompanied by 20 allies (A7) 5023 | -6/Cetus | Spotted Cetus Guard 5024 | -6/Cetus | Acquired a Cetus Manufacturing Module code from A7 5024 | -6/Cetus | Spotted Cetus Guard 5029 | -6/Cetus | Spotted Cetus Guard 5029 | -6/Cetus | Spotted Cetus Guard 5044 | -6/Cetus | Allies destroyed Cetus Guard 5044 | -6/Cetus | Allies destroyed Cetus Guard 5044 | -6/Cetus | Allies destroyed Cetus Guard 5045 | -6/Cetus | Allies destroyed Cetus Guard 5070 | -6/Cetus | Escorted A7 to Cetus Mainframe 5072 | -6/Cetus | Started Cetus Manufacturing Module 5097 | -6/Cetus | Manufactured an Enhanced Grunt 5122 | -6/Cetus | Manufactured an Enhanced Grunt 5147 | -6/Cetus | Manufactured an Enhanced Grunt 5172 | -6/Cetus | Manufactured an Enhanced Grunt 5197 | -6/Cetus | Manufactured an Enhanced Grunt 5274 | -6/Cetus | Discovered new exit (range 16) 5279 | -6/Cetus | Spotted Cetus Guard 5279 | -6/Cetus | Spotted Cetus Guard 5300 | -6/Cetus | Spotted Cetus Guard 5301 | -6/Cetus | Spotted Cetus Guard 5315 | -6/Cetus | Allies destroyed Cetus Guard 5317 | -6/Cetus | Allies destroyed Cetus Guard 5319 | -6/Cetus | Allies destroyed Cetus Guard 5319 | -6/Cetus | Allies destroyed Cetus Guard 5323 | -6/Cetus | Discovered new exit (range 15) 5327 | -6/Cetus | Met Revision 17 5334 | -6/Cetus | Allies destroyed Revision 17 5396 | -6/Cetus | Entered Archives 5396 | -6/Archives | Accompanied by 10 allies (A7) 5403 | -6/Archives | Received a hacking code to weaken MAIN.C 5464 | -6/Archives | Discovered new exit (range 16) 5473 | -6/Archives | Discovered new exit (range 13) 5663 | -6/Archives | Discovered new exit (range 15) 5748 | -6/Archives | Entered Hub_04(d) 5748 | -6/Hub_04(d) | Accompanied by 4 allies 5767 | -6/Hub_04(d) | Discovered new exit (range 6) 5794 | -6/Hub_04(d) | Found Scatter Rocket Array 5802 | -6/Hub_04(d) | Network Hub disabled 5856 | -6/Hub_04(d) | Entered Factory 5856 | -5/Factory | Accompanied by 4 allies 5856 | -5/Factory | Evolved 2 slots: Utility x2 5967 | -5/Factory | Identified exit to Upper Caves 6147 | -5/Factory | Incoming investigation squad redirected 6156 | -5/Factory | First assault squad dispatched 6157 | -5/Factory | Incoming investigation squad redirected 6174 | -5/Factory | Fabricated Imp. Flight Unit? 6181 | -5/Factory | Fabricated Adv. Hacking Suite (x1) 6186 | -5/Factory | Incoming assault squad redirected 6202 | -5/Factory | Identified exit to Factory 6243 | -5/Factory | Entered another Factory area 6243 | -4/Factory | Evolved 2 slots: Utility x2 6385 | -4/Factory | Lost 5 parts (2p1n2u) 6487 | -4/Factory | Build established: Hacker-Sprinter 6493 | -4/Factory | First assault squad dispatched 6521 | -4/Factory | Incoming assault squad redirected 6841 | -4/Factory | Fabricated Adv. Hacking Suite (x1) 6917 | -4/Factory | Spotted B-86 Titan 6927 | -4/Factory | Lost 3 parts (1n1u1w) 6982 | -4/Factory | Discovered new exit (range 15) 7019 | -4/Factory | Identified exit to Research 7019 | -4/Factory | Entered Research 7019 | -3/Research | Evolved 2 slots: Utility x2 7111 | -3/Research | Found Prototype Processor 7111 | -3/Research | Identified Exp. Target Analyzer 7242 | -3/Research | Identified exit to Armory 7242 | -3/Research | Identified exit to Quarantine 7259 | -3/Research | Build established: Hacker-Scout 7286 | -3/Research | Lost 3 parts (2p1n) 7300 | -3/Research | Incoming investigation squad redirected 7328 | -3/Research | Fabricated Adv. Hacking Suite? 7356 | -3/Research | Lost 3 parts (2u1w) 7384 | -3/Research | Spotted B-90 Cyclops 7494 | -3/Research | Entered Quarantine 7555 | -3/Quarantine | Repaired Adv. Heat Sink 7579 | -3/Quarantine | Repaired Mic. Antimatter Reactor 7612 | -3/Quarantine | Identified exit to Research 7746 | -3/Quarantine | Found Alien Artifact 7746 | -3/Quarantine | Identified Core Reset Matrix 7746 | -3/Quarantine | Used Core Reset Matrix 7750 | -3/Quarantine | Detected hypermatrix surge 7750 | -3/Quarantine | Sensed 12 artifacts in vicinity 7798 | -3/Quarantine | Build established: Hacker-Ninja 7899 | -3/Quarantine | Incoming investigation squad redirected 7912 | -3/Quarantine | Found Unknown Piercing Weapon 7912 | -3/Quarantine | Identified Enh. Force Lance 7926 | -3/Quarantine | Met incapacitated Sigix Warrior 7926 | -3/Quarantine | Lockdown squad dispatched 7927 | -3/Quarantine | Acquired the access code to the Sigix quarantine chamber 7927 | -3/Quarantine | Unlocked Sigix quarantine chamber 7938 | -3/Quarantine | Spotted Lightning 7984 | -3/Quarantine | Found Terrabomb 7986 | -3/Quarantine | Discovered exit to Research (range 12) 8003 | -3/Quarantine | Entered Research 8003 | -2/Research | Evolved 2 slots: Utility x2 8083 | -2/Research | Repaired Particle Reactor 8105 | -2/Research | Repaired Field Propulsion Array 8120 | -2/Research | Spotted B-90 Cyclops 8173 | -2/Research | Found Unknown Device 8173 | -2/Research | Identified Quantum Capacitor 8233 | -2/Research | Fabricated Lgt. Quantum Reactor (x2) 8240 | -2/Research | Spotted B-90 Cyclops 8265 | -2/Research | Identified exit to Access 8265 | -2/Research | Identified exit to Testing 8275 | -2/Research | Spotted B-90 Cyclops 8328 | -2/Research | Lost 3 parts (1p1n1u) 8360 | -2/Research | Entered Access 8360 | -1/Access | Evolved 2 slots: Propulsion x1, Utility x1 8586 | -1/Access | Identified exit to Surface 8691 | -1/Access | Lost 6 parts (2n4u) 8693 | -1/Access | Core integrity fell below 50% 8705 | -1/Access | Emitted hypermatrix ping 8708 | -1/Access | Assembled emerged from beneath the floor 8710 | -1/Access | Assembled emerged from beneath the floor 8758 | -1/Access | Incoming investigation squad redirected 8771 | -1/Access | Core integrity fell below 20% 8777 | -1/Access | Assembled emerged from beneath the floor 8782 | -1/Access | Destroyed by H-88 Terminator with Heavy Machine Gun Last Messages --------------- 08772_ JSTEQA| 08776_ Slug penetrates Wall. 08776_ Penetrated by Slug. 08777_ Assembled emerge from beneath the floor. 08778_ Triggered Stasis Trap. 08778_ A bubble of rippling energy engulfs the area. 08778_ Field strength at 94. 08779_ Penetrated by Slug. 08779_ K-01 Serf destroyed. 08779_ Field strength at 77. 08779_ Slug penetrates as-08920. 08779_ as-08920 destroyed. 08779_ Slug penetrates as-29376. 08779_ Slug penetrates as-49634. 08780_ K-01 Serf collects debris. 08780_ Field strength at 71. 08781_ Field strength at 65. 08782_ Penetrated by Slug. 08782_ Field strength at 47. Map ----- +----------------------------------------------------+ | ??????????? #????# | | ????????????# #????# "" | | ???????????# #????# "" | | ############ ###### " " "F | | """ """ | | """ """ " | | " " " | | | | | | | | " ###############"############## | | """" #??????????????##????????????# | | ?""""" #????????????????????????????# | | """"" #?????????????????????????? | | """" #?????????????????????????? | | " #????????????????????????? | | #???????????????????????? h | | #??????????????????????? | | #?????????????????????? h | | #????????????????????? | | ##################### ? ! | | "??? " | | a """"??? """" | | """""????""""" | | """""????""""" | | @ """"?????"""" | | " ??????"?? | | !% === k ?????????? | | aa *]% == ?????????? | | ############# h a*! == ?????????? | | ??????????? k a ]! k ??????????? | | ??????????? ??????????? | | ?????????? h ??????????? | | ?????????? ???????????? | | ?????????? #### ???????????? | | ??????????? #???#####????????????? | | ???????????? #????????????????????? | | ???????????????? #????????????????????? | | ??????????????????###########????????????????????? | | ?????????????????????????????????????????????????? | | ?????????????????????????????????????????????????? | | ?????????????????????????????????????????????????? | | ?????????????????????????????????????????????????? | | ?????????????????????????????????????????????????? | | ?????????????????????????????????????????????????? | | ?????????????????????????????????????????????????? | | ?????????????????????????????????????????????????? | | | | | | | +----------------------------------------------------+ Best States ------------- Heat Dissipation 68 Energy Generation 39 Energy Capacity 460 Matter Stores 300 Matter Capacity 300 Sight Range 16 Robot Scan Range 18 Terrain Scan Density 10 ECM Strength 2 Jamming Range 14 Power Amplification 30 Corruption Containment 12 Armor Coverage 300 Propulsion Shielding 33 Utility Shielding 66 Point Defense Rating 80 Phase Shifting 5 Evasion (%) 82 Targeting Accuracy 6 Target Analysis 10 Recoil Reduction 4 Matter Filtering 50 Energy Filtering 50 Offensive Hacking 48 Defensive Hacking 24 Item Schematics ----------------- Biomechanical Wings | -2/Research | Hacked Robot Schematics ------------------ None Fabricated ------------ Imp. Flight Unit | x1 | -6/Factory S-27 Virus | x4 | -6/Factory | Preloaded B-48 Gladiator | x3 | -6/Factory | Preloaded Imp. Flight Unit | x1 | -5/Factory Adv. Hacking Suite | x1 | -5/Factory Adv. Hacking Suite | x1 | -4/Factory Adv. Hacking Suite | x1 | -3/Research Lgt. Quantum Reactor | x2 | -2/Research | Preloaded Alien Tech Used ----------------- Core Reset Matrix Achievements -------------- Safety First Challenges ------------ None Game ------ Seed DecoyControlDissipator Manual? 0 Play Time 02:58:49 Cumulative 183.2 hours Start 2023.11.17 @ 14:21:18 End 2023.11.17 @ 17:36:52 Sessions 1 Manual Loads 0 Difficulty Rogue Special Mode None Game No. 104 Rogue 104 Adventurer 0 Explorer 0 Win Type - Total 1 Types 1/0/0/0/0/0/0/0/0 Lore% 46 Gallery% 68 Achievement% 54 Wizard Run 0 Options --------- ASCII 0 Keyboard 1 Movement Numpad Keybinds 0 Fullscreen 1 Font 24/Smallcaps Map View 76x50 Tactical HUD 1 Map Filters NONE Filters NONE Steam 1 RUN: f54d5d45-f82e-4d82-b637-e3b3bef837b3